bitfinex/quotes_ETHUSD_20260226
["timestamp","ask_amount","ask_price","bid_price","bid_amount"]
[1772081165212,1.831,2078.4,2078.1,0.29206559]
[1772081165412,1.831,2078.4,2078.0,1.49644755]
[1772081166012,3.03385319,2078.4,2078.0,1.49644755]
[1772081166294,3.03385319,2078.4,2078.1,0.001]
[1772081166489,1.48509871,2078.3,2078.1,0.001]
[1772081166717,1.48509871,2078.1,2077.9,0.001]
[1772081169232,2.68815358,2078.1,2077.9,0.001]
[1772081170549,1.48509871,2078.0,2077.6,0.001]
[1772081171216,2.68817908,2078.0,2077.6,1.49744755]
[1772081171453,2.68817908,2078.0,2077.6,0.001]
[1772081172135,1.48509871,2077.9,2077.6,0.001]
[1772081173410,2.68828632,2077.9,2077.6,0.001]
[1772081174516,1.48509871,2077.9,2077.6,0.001]
[1772081174722,2.68824115,2077.9,2077.6,0.001]
[1772081174922,1.48509871,2077.8,2077.6,0.001]
[1772081175333,1.20314244,2077.9,2077.6,0.001]
[1772081175729,2.68824115,2077.9,2077.6,0.001]
[1772081176632,1.48509871,2077.8,2077.6,0.001]
[1772081176829,1.48509871,2077.7,2077.2,1.49644755]
[1772081177030,1.48509871,2077.7,2077.0,1.49644755]
[1772081177840,1.48509871,2077.5,2077.0,1.49644755]
[1772081178150,1.7771643,2077.4,2076.8,1.49644755]
[1772081178851,1.48509871,2077.4,2076.8,1.49644755]
[1772081179250,1.48509871,2077.4,2077.3,0.001]
[1772081179432,1.20331151,2077.6,2077.2,1.49644755]
[1772081179637,2.68837851,2077.7,2077.2,1.49644755]
[1772081179836,1.48509871,2077.6,2077.0,1.49644755]
[1772081180047,1.7771643,2077.6,2076.8,2.7002175]
[1772081180344,1.7771643,2077.6,2076.8,1.49644755]
[1772081180546,1.7771643,2077.6,2076.9,0.29206559]
[1772081181851,1.48509871,2077.4,2076.9,0.29206559]
[1772081182230,1.48509871,2077.4,2076.9,1.78851314]
[1772081184060,2.68855957,2077.4,2076.9,1.78851314]
[1772081184263,1.48509871,2077.3,2076.7,1.78636219]
[1772081185459,1.20346086,2077.4,2076.8,1.49011897]
[1772081185655,1.20341202,2077.5,2077.0,1.49011897]
[1772081186162,1.47094215,2077.5,2077.0,1.49011897]
[1772081188353,2.67436951,2077.4,2077.0,1.49011897]
[1772081188970,1.47094215,2077.3,2076.7,1.70050777]
[1772081189176,1.47094215,2077.3,2076.7,2.90433709]
[1772081189469,1.47094215,2077.3,2076.7,1.40844218]
[1772081189668,1.47094215,2077.3,2076.8,1.40844218]
[1772081190069,1.47094215,2077.3,2076.6,4.39395942]
[1772081190283,1.47094215,2077.3,2076.6,2.98551724]
[1772081190667,2.67448538,2077.2,2076.7,1.40844218]
[1772081191174,1.47094215,2077.1,2077.0,0.001]
[1772081191369,1.47094215,2077.1,2076.5,1.40844218]
[1772081191592,1.47094215,2077.1,2076.8,0.001]
[1772081192791,1.20365912,2077.0,2076.8,0.001]
[1772081192988,2.67460127,2077.0,2076.8,0.001]
[1772081195398,1.4661482,2077.0,2076.5,1.42495298]
[1772081196794,2.66973637,2077.2,2076.7,1.42495298]
[1772081197296,1.4661482,2077.2,2076.7,1.42495298]
[1772081197481,2.67163658,2077.3,2076.6,3.06744605]
[1772081197794,1.4661482,2077.2,2076.6,3.06746986]
[1772081199099,1.4661482,2077.2,2076.6,1.86358145]
[1772081199302,1.4661482,2077.2,2076.6,1.42495298]
[1772081199474,1.20360117,2077.1,2076.6,1.42495298]
[1772081199670,1.4661482,2077.0,2076.6,1.42495298]
[1772081199874,1.4661482,2077.0,2076.4,1.86358145]
[1772081200099,1.4661482,2077.0,2076.4,3.06758784]
[1772081200305,1.4661482,2077.0,2076.5,1.42495298]
[1772081200486,1.20360117,2077.1,2076.5,1.42495298]
[1772081200686,1.20552651,2077.3,2076.9,1.42266353]
[1772081201079,0.002,2077.3,2076.9,1.42266353]
[1772081201294,1.4681482,2077.3,2076.9,1.42266353]
[1772081201708,0.002,2077.3,2076.9,1.42266353]
[1772081202078,0.002,2077.3,2076.2,1.41930935]
[1772081202079,1.4661482,2076.9,2076.2,1.41930935]
[1772081202411,1.4661482,2076.9,2075.6,2.10148907]
[1772081202412,1.4661482,2076.8,2076.0,0.43862847]
[1772081203413,1.4661482,2076.8,2075.8,2.5453261]
[1772081203414,1.51952941,2076.7,2075.8,0.43862847]
[1772081203908,1.51952941,2076.5,2075.8,0.43862847]
[1772081204892,2.72342038,2076.6,2076.0,0.43862847]
[1772081205203,1.51952941,2076.5,2076.0,0.43862847]
[1772081205401,1.51952941,2076.5,2075.8,0.43862847]
[1772081205598,1.51952941,2076.5,2075.8,1.64298185]
[1772081205906,1.51952941,2076.3,2075.8,1.64298185]
[1772081206080,1.51952941,2076.3,2075.8,0.43862847]
[1772081206676,1.51952941,2076.3,2075.8,1.64298051]
[1772081206914,2.72350711,2076.5,2076.0,0.43862847]
[1772081207484,1.51952941,2076.4,2076.0,0.43862847]
[1772081208600,4.81556392,2076.6,2076.2,0.43862847]
[1772081208601,1.51952941,2076.6,2076.2,0.43862847]
[1772081208806,1.51952941,2076.8,2076.2,0.43862847]
[1772081209922,1.51952941,2076.8,2076.0,1.2042298]
[1772081209923,0.002,2078.3,2076.6,11.84296869]
[1772081210216,0.002,2078.5,2078.0,0.43862847]
[1772081210391,0.002,2078.5,2078.2,0.43862847]
[1772081210713,1.20479197,2078.5,2078.1,0.43862847]
[1772081210886,0.002,2078.5,2078.1,0.43862847]
[1772081211288,0.002,2078.5,2077.9,2.04396894]
[1772081211488,2.72433148,2078.5,2077.9,2.04396894]
[1772081211706,1.52152941,2078.5,2077.9,2.04396894]
[1772081211989,1.52152941,2078.5,2077.6,2.04396894]
[1772081211990,1.51952941,2078.4,2077.6,2.04396894]
[1772081212182,1.51952941,2078.4,2077.5,1.338]
[1772081212412,1.51952941,2078.4,2077.3,2.54148529]
[1772081213216,1.51952941,2078.4,2077.1,2.54156454]
[1772081215393,1.51952941,2078.2,2077.1,2.54156454]
[1772081215800,1.51952941,2078.2,2077.6,2.04396894]
[1772081215994,1.51952941,2078.2,2077.2,2.04396894]
[1772081218728,1.51952941,2078.0,2077.2,1.20350712]
[1772081220798,1.51952941,2077.8,2077.1,1.338]
[1772081221403,1.51952941,2077.8,2077.1,2.54159758]
[1772081221604,0.002,2078.1,2077.5,2.04396894]
[1772081221605,1.52152941,2078.1,2077.5,2.04396894]
[1772081221823,1.52152941,2078.1,2077.2,2.04396894]
[1772081222022,1.51952941,2078.0,2077.2,2.04396894]
[1772081222907,1.51952941,2077.9,2077.3,1.20348529]
[1772081223107,1.52152941,2078.1,2077.3,1.20348529]
[1772081223306,2.72455585,2078.1,2077.3,1.20348529]
[1772081223513,0.002,2078.3,2077.6,2.04396894]
[1772081223836,0.002,2078.3,2077.7,1.337]
[1772081224827,0.002,2078.3,2077.8,1.20319568]
[1772081225029,0.002,2078.5,2077.9,2.04396894]
[1772081225536,1.52152941,2078.5,2077.9,2.04396894]
[1772081226345,0.002,2078.5,2077.9,2.04396894]
[1772081227226,1.52152941,2078.5,2077.9,3.2470619]
[1772081228059,1.52152941,2078.5,2077.8,1.20315139]
[1772081228246,1.52152941,2078.5,2077.7,2.54022355]
[1772081229526,2.72432204,2078.5,2077.7,2.54022355]
[1772081230230,1.51952941,2078.4,2077.7,2.54022355]
[1772081230964,1.51952941,2078.4,2077.9,0.001]
[1772081231251,1.52152941,2078.3,2077.9,0.001]
[1772081231450,1.51952941,2078.2,2077.9,0.001]
[1772081232054,0.002,2078.3,2077.9,0.001]
[1772081233454,0.002,2078.3,2077.8,2.03496894]
[1772081234130,1.52152941,2078.3,2077.8,3.23812814]
[1772081234330,1.52152941,2078.3,2077.8,2.03496894]
[1772081234761,1.52152941,2078.3,2077.8,3.23815559]
[1772081235867,1.52152941,2078.3,2077.8,2.03496894]
[1772081236362,1.51952941,2078.2,2077.6,1.20427437]
[1772081237141,1.51952941,2078.2,2077.6,0.001]
[1772081238842,2.7225514,2078.1,2077.6,0.001]
[1772081239048,1.51952941,2078.1,2077.6,0.001]
[1772081239348,4.81372509,2078.3,2077.7,2.04396894]
[1772081239349,1.52152941,2078.3,2077.7,2.04396894]
[1772081241041,1.52152941,2078.3,2077.8,1.20319568]
[1772081242456,1.52152941,2078.5,2077.9,1.339]
[1772081243357,1.52152941,2078.5,2078.0,1.20307988]
[1772081244055,0.002,2078.1,2078.0,1.20307988]
[1772081244252,1.52152941,2078.5,2078.0,1.20307988]
[1772081244461,1.52152941,2078.5,2078.0,3.24704882]
[1772081244640,0.002,2078.6,2078.1,1.39792789]
[1772081245439,0.002,2078.6,2078.1,2.60089619]
[1772081245840,1.46450024,2078.6,2077.9,2.73402417]
[1772081246042,1.46450024,2078.6,2077.9,1.339]
[1772081247465,1.44476971,2078.6,2078.0,1.39222321]
[1772081247760,2.64750374,2078.6,2078.1,1.39222321]
[1772081250267,1.44276971,2078.5,2077.9,1.339]
[1772081250886,1.44276971,2078.5,2077.9,2.54213282]
[1772081251085,1.44276971,2078.5,2077.9,3.92888554]
[1772081252281,2.64560255,2078.5,2077.9,3.92889014]
[1772081252459,1.44276971,2078.4,2077.9,2.72575272]
[1772081252659,1.44276971,2078.4,2077.9,1.339]
[1772081253764,1.44276971,2078.4,2077.9,2.54213521]
[1772081253963,1.44276971,2078.4,2077.9,3.9118456]
[1772081254182,2.64564602,2078.4,2077.9,2.70871039]
[1772081254690,2.64564373,2078.4,2077.9,3.91184284]
[1772081255294,2.64564373,2078.4,2078.1,0.29204307]
[1772081255589,1.44276971,2078.4,2078.1,0.29204307]
[1772081256188,0.002,2078.2,2078.1,0.29204307]
[1772081256373,2.60954735,2078.6,2078.1,0.29204307]
[1772081256688,0.002,2078.4,2078.1,0.29204307]
[1772081262379,1.40677051,2078.4,2078.1,0.29204307]
[1772081264873,0.002,2078.4,2078.3,0.29204307]
[1772081271717,1.40677051,2078.4,2078.1,0.001]
[1772081273314,1.20290622,2078.3,2078.1,0.001]
[1772081274828,1.20290622,2078.3,2078.1,0.29304307]
[1772081275205,1.40677051,2078.4,2078.1,0.29304307]
[1772081276106,1.40677051,2078.4,2078.1,1.64867594]
[1772081276645,0.002,2078.4,2078.3,0.29204307]
[1772081277030,0.002,2078.6,2078.3,0.29204307]
[1772081277330,1.33464105,2078.6,2078.3,0.29204307]
[1772081278032,1.33464105,2078.7,2078.5,0.29204307]
[1772081278333,1.48590548,2078.6,2078.3,0.29204307]
[1772081278537,0.61739257,2078.5,2078.3,0.29204307]
[1772081279709,1.82019221,2078.5,2078.3,0.29204307]
[1772081279927,0.61739257,2078.5,2078.3,0.29204307]
[1772081280333,1.2027169,2078.7,2078.3,1.70141569]
[1772081280540,1.2027169,2078.7,2078.5,0.29204307]
[1772081280735,1.49163412,2078.6,2078.3,0.29204307]
[1772081280934,0.62312121,2078.5,2078.3,0.29204307]
[1772081281340,0.86851291,2078.6,2078.4,0.001]
[1772081281544,1.20269726,2078.7,2078.5,0.29204307]
[1772081282150,0.62697537,2078.7,2078.5,0.29204307]
[1772081283646,0.62881874,2078.9,2078.5,1.70141569]
[1772081283852,1.20444584,2079.1,2078.8,1.70141569]
[1772081284052,1.20444584,2079.1,2078.8,0.29204307]
[1772081284053,0.63064408,2079.1,2078.8,0.29204307]
[1772081287424,0.63064408,2079.1,2078.8,1.70141569]
[1772081287425,0.002,2079.1,2078.8,1.70141569]
[1772081290642,0.63596906,2079.2,2079.0,0.29204307]
[1772081290871,1.21119105,2079.3,2079.0,0.29204307]
[1772081291443,0.00683244,2079.2,2079.0,0.29204307]
[1772081293469,1.20422349,2079.5,2079.2,0.29204307]
[1772081293639,1.20632592,2079.5,2079.4,0.29204307]
[1772081294042,0.00410243,2079.6,2079.4,0.29204307]
[1772081294245,1.819,2080.0,2079.4,0.29204307]
[1772081294246,1.20576227,2080.5,2079.6,1.44944967]
[1772081294443,1.20576227,2080.5,2079.5,3.97438763]
[1772081294444,0.00410243,2080.4,2079.5,1.74149274]
[1772081294675,0.00410243,2080.2,2079.5,0.29204307]
[1772081294971,0.00410243,2080.2,2079.7,0.29204307]
[1772081295976,0.00410243,2080.2,2079.9,0.29204307]
[1772081296165,0.00410243,2080.2,2079.8,0.29204307]
[1772081297086,0.00410243,2080.2,2079.8,1.74149274]
[1772081297289,1.2119934,2080.4,2080.1,0.29204307]
[1772081297587,1.20163848,2080.5,2080.1,1.74149274]
[1772081297788,1.21185891,2080.6,2080.3,0.29204307]
[1772081297964,1.20156228,2080.7,2080.3,0.29204307]
[1772081298157,1.20156228,2080.7,2080.4,0.29204307]
[1772081299383,0.01422339,2080.8,2080.2,0.29204307]
[1772081300791,0.01422339,2080.8,2080.2,1.74149274]
[1772081301292,1.20151871,2080.7,2080.2,1.44944967]
[1772081301489,0.01811904,2080.6,2080.0,1.44944967]
[1772081301699,0.01811904,2080.6,2079.6,1.45707436]
[1772081301700,0.01811904,2080.6,2079.6,1.44944967]
[1772081302066,0.02002859,2080.4,2079.3,1.343]
[1772081302276,0.02002859,2080.4,2079.4,1.44944967]
[1772081302570,0.02002859,2080.4,2079.6,1.44944967]
[1772081303208,0.02002859,2080.4,2079.4,1.44944967]
[1772081303393,0.02190566,2080.2,2079.4,1.44944967]
[1772081305425,1.20186529,2080.1,2079.5,1.44944967]
[1772081305920,0.02921876,2080.4,2079.7,1.44944967]
[1772081306110,1.23067973,2080.8,2080.0,1.44944967]
[1772081307194,1.23067973,2080.8,2079.8,2.79044967]
[1772081307195,0.03100151,2080.7,2079.8,2.79044967]
[1772081307394,0.03100151,2080.7,2079.8,2.79144967]
[1772081307606,1.23257797,2080.6,2079.9,1.44944967]
[1772081309639,0.03622651,2080.7,2080.1,1.44944967]
[1772081310537,0.03622651,2080.7,2079.9,1.44944967]
[1772081310844,0.03794335,2080.6,2079.8,0.001]
[1772081311138,0.03794335,2080.4,2079.8,0.001]
[1772081311637,0.03964526,2080.2,2079.8,0.001]
[1772081312216,0.03964526,2080.2,2079.5,0.001]
[1772081312416,0.03964526,2080.2,2079.5,1.45044967]
[1772081312631,1.20174974,2080.3,2079.5,1.45044967]
[1772081312812,0.0413058,2080.2,2079.5,1.45044967]
[1772081313719,4.85157539,2080.4,2079.6,1.44944967]
[1772081313926,4.80699899,2080.4,2079.6,1.44944967]
[1772081314265,0.0445764,2080.3,2079.5,0.001]
[1772081314947,0.0445764,2080.3,2079.5,1.45044967]
[1772081315949,1.24958147,2080.2,2079.5,1.45044967]
[1772081316651,1.24958147,2080.2,2079.5,2.65265304]
[1772081316823,1.24958147,2080.2,2079.5,1.45044967]
[1772081317349,1.20180751,2080.2,2079.6,1.44944967]
[1772081317648,0.04933297,2080.1,2079.5,0.001]
[1772081317950,0.04933297,2080.1,2079.5,2.65264575]
[1772081318255,1.25119847,2080.1,2079.6,1.44944967]
[1772081318453,1.20183602,2080.2,2079.6,1.44944967]
[1772081319151,7.56178453,2080.3,2079.6,1.44944967]
[1772081320165,7.5617546,2080.3,2079.8,1.44944967]
[1772081320469,0.002,2080.1,2079.9,1.44944967]
[1772081321625,0.05743173,2080.1,2079.7,0.001]
[1772081322727,1.20192307,2080.0,2079.7,0.001]
[1772081323143,0.05840168,2079.9,2079.5,0.001]
[1772081323450,0.05840168,2079.9,2079.3,0.001]
[1772081324243,0.05887257,2079.8,2079.3,0.001]
[1772081324442,0.05887257,2079.6,2079.3,0.001]
[1772081324823,1.26251571,2079.5,2079.3,0.001]
[1772081325446,0.06030364,2079.5,2079.3,0.001]
[1772081325649,3.01609851,2079.7,2079.3,0.001]
[1772081326157,0.06171993,2079.6,2079.3,0.001]
[1772081326454,0.06171993,2079.6,2079.0,0.001]
[1772081327030,1.26533001,2079.5,2079.0,0.001]
[1772081330235,3.0833523,2079.7,2079.0,1.45094967]
[1772081331660,1.814,2079.7,2079.2,1.44994967]
[1772081332838,1.814,2079.7,2079.2,1.45094967]
[1772081333060,0.002,2079.3,2079.2,1.45094967]
[1772081333244,0.002,2079.5,2079.3,1.44994967]
[1772081333652,0.002,2080.1,2079.3,2.04150527]
[1772081333854,0.002,2079.8,2079.5,1.44994967]
[1772081334055,0.002,2080.6,2079.7,2.04150527]
[1772081334266,0.002,2080.6,2079.8,1.44994967]
[1772081336272,0.002,2080.6,2080.0,1.47910581]
[1772081336944,0.002,2080.6,2080.1,1.47910581]
[1772081338367,0.002,2080.6,2080.3,1.47910581]
[1772081340243,0.002,2080.6,2080.1,2.68092742]
[1772081340895,0.002,2080.6,2079.6,3.37450527]
[1772081340896,0.08417153,2080.6,2079.7,6.28730348]
[1772081341186,0.08417153,2080.6,2079.8,1.47910581]
[1772081341187,0.002,2080.6,2079.8,1.47910581]
[1772081341907,0.002,2080.6,2080.0,1.47910581]
[1772081342113,0.002,2080.6,2079.7,4.80819767]
[1772081342114,0.002,2080.8,2080.3,1.47910581]
[1772081342791,0.002,2080.8,2080.5,1.47910581]
[1772081343801,0.002,2080.8,2080.3,1.47910581]
[1772081345589,0.002,2080.6,2080.3,1.47910581]
[1772081346299,0.002,2080.6,2080.3,2.68085444]
[1772081346499,0.002,2080.8,2080.4,1.47910581]
[1772081347313,0.002,2080.8,2080.5,1.47910581]
[1772081347507,0.002,2081.0,2080.6,1.47910581]
[1772081349612,0.002,2081.0,2080.7,1.20151871]
[1772081349926,0.09601149,2081.0,2080.3,1.20171011]
[1772081350410,0.09601149,2081.0,2080.3,2.68081592]
[1772081351919,1.29748074,2080.9,2080.3,1.47910581]
[1772081352292,1.29748074,2080.9,2080.2,1.20180626]
[1772081352694,0.09607751,2080.9,2080.2,2.68091207]
[1772081353937,0.09607751,2080.9,2080.4,1.20169198]
[1772081355341,1.29748338,2080.9,2080.3,2.68081403]
[1772081355537,1.29748338,2080.9,2080.3,1.47910581]
[1772081356640,0.1000531,2080.8,2080.3,1.47910581]
[1772081357418,0.1000531,2080.8,2080.5,0.001]
[1772081357621,0.002,2080.7,2080.5,0.001]
[1772081360316,0.10582849,2080.7,2080.5,0.001]
[1772081361228,0.002,2080.7,2080.5,0.001]
[1772081361421,0.10374101,2080.6,2080.3,0.001]
[1772081363811,1.20355207,2080.7,2080.3,0.001]
[1772081364514,1.20355207,2080.7,2080.3,1.48010581]
[1772081365412,0.10729528,2080.6,2080.3,0.001]
[1772081367644,0.11070856,2080.4,2080.3,0.001]
[1772081369749,1.31240054,2080.4,2080.3,0.001]
[1772081369942,1.31240054,2080.4,2080.0,0.001]
[1772081370243,0.11237992,2080.3,2080.0,0.001]
[1772081373659,0.11634484,2080.2,2080.0,0.001]
[1772081373957,4.8069316,2080.4,2079.6,1.20211938]
[1772081374162,0.11534484,2080.1,2079.6,2.68693501]
[1772081374338,0.11534484,2080.1,2079.7,1.48481563]
[1772081376158,0.11534484,2080.1,2079.8,1.20203865]
[1772081376463,0.11687094,2080.3,2079.8,2.68685428]
[1772081377359,0.11687094,2080.3,2079.9,1.48481563]
[1772081377550,3.12527945,2080.5,2079.9,1.48481563]
[1772081377934,0.11836694,2080.4,2079.9,1.48481563]
[1772081378347,1.32006745,2080.4,2079.9,1.48481563]
[1772081378548,1.32006745,2080.4,2079.9,2.68679105]
[1772081378778,1.32006745,2080.4,2079.9,1.48481563]
[1772081380363,0.11982504,2080.3,2079.9,1.48481563]
[1772081380764,3.00767431,2080.5,2079.9,1.48481563]
[1772081380985,3.12820986,2080.5,2080.0,1.48481563]
[1772081381387,0.12053555,2080.4,2080.0,1.48481563]
[1772081382384,1.20170493,2080.4,2079.8,1.48481563]
[1772081382584,0.12123852,2080.3,2079.8,1.48481563]
[1772081383187,0.12123852,2080.3,2079.9,1.48581563]
[1772081383486,0.002,2080.2,2079.9,1.48581563]
[1772081384986,0.002,2080.2,2079.9,2.68778064]
[1772081386311,0.002,2080.2,2080.0,1.48481563]
[1772081387397,0.002,2080.2,2080.0,2.68669143]
[1772081387904,0.002,2080.4,2080.0,2.68669143]
[1772081388797,0.002,2080.4,2080.1,1.48481563]
[1772081393391,0.13255623,2080.4,2080.1,1.48481563]
[1772081393590,0.13255623,2080.4,2079.9,2.83281563]
[1772081394977,0.13180535,2080.3,2079.9,4.03478853]
[1772081395290,0.13180535,2080.3,2080.0,1.77634035]
[1772081395481,1.20369584,2080.4,2080.0,1.77634035]
[1772081397314,1.33707964,2080.4,2080.0,1.48481563]
[1772081398209,1.33707964,2080.4,2079.9,2.5499729]
[1772081398210,0.13388205,2080.3,2079.9,0.001]
[1772081398526,0.13288205,2080.1,2079.9,0.001]
[1772081399197,0.002,2080.2,2079.9,1.45044967]
[1772081401433,1.33818349,2080.2,2079.9,0.001]
[1772081401730,0.13635181,2080.2,2079.9,0.001]
[1772081401923,0.002,2080.2,2079.9,1.45044967]
[1772081402322,0.13482608,2080.1,2079.9,0.001]
[1772081402540,0.13482608,2080.1,2079.7,0.001]
[1772081402835,0.13482608,2080.1,2079.4,0.001]
[1772081402836,1.45767395,2079.9,2079.4,0.001]
[1772081403037,0.13529834,2079.8,2079.1,1.44944967]
[1772081403609,0.13529834,2079.6,2079.1,1.44944967]
[1772081404338,0.13529834,2079.6,2079.0,0.001]
[1772081404530,0.13529834,2079.6,2079.0,1.45044967]
[1772081405527,1.20221207,2079.5,2079.0,1.45044967]
[1772081406339,1.20198086,2079.9,2079.1,1.44944967]
[1772081406539,0.13669867,2079.9,2079.3,1.44944967]
[1772081408543,1.33870565,2079.9,2079.4,1.44944967]
[1772081409240,0.13805327,2079.8,2079.2,1.44944967]
[1772081409455,0.13805327,2079.8,2079.0,1.45044967]
[1772081409750,0.13805327,2079.8,2079.0,2.65293496]
[1772081410037,0.13805327,2079.8,2079.1,1.44944967]
[1772081410446,1.34058809,2079.7,2079.1,2.65188364]
[1772081410621,0.13849164,2079.7,2079.2,1.44944967]
[1772081410827,1.20202559,2079.9,2079.2,1.44944967]
[1772081411437,1.34095047,2079.9,2079.2,1.45044967]
[1772081411740,0.002,2079.7,2079.2,1.45044967]
[1772081412534,0.002,2079.7,2079.4,1.44944967]
[1772081413635,0.002,2079.7,2079.2,1.45044967]
[1772081414251,0.14220756,2079.7,2079.2,1.45044967]
[1772081414744,0.14220756,2079.7,2079.3,1.44944967]
[1772081414952,0.002,2079.7,2079.3,1.44944967]
[1772081416568,0.002,2079.9,2079.3,1.44844967]
[1772081416768,0.002,2079.9,2079.6,1.44844967]
[1772081420175,0.002,2079.9,2079.8,1.44844967]
[1772081420970,0.002,2080.2,2079.8,1.44844967]
[1772081422016,0.002,2080.2,2079.9,1.44844967]
[1772081422292,0.002,2080.2,2079.8,1.44844967]
[1772081422448,0.14738765,2080.2,2079.4,1.44844967]
[1772081423346,0.002,2079.7,2079.4,1.44844967]
[1772081424273,0.002,2079.7,2079.3,1.20232466]
[1772081424648,0.002,2079.7,2079.2,1.44944967]
[1772081424849,0.14849508,2079.7,2079.2,1.44944967]
[1772081425156,0.14849508,2079.7,2079.2,2.65183164]
[1772081425357,0.002,2079.7,2079.3,1.44844967]
[1772081425966,0.002,2079.9,2079.5,1.49492143]
[1772081427175,0.002,2079.9,2079.6,1.49492143]
[1772081429366,0.002,2079.9,2079.8,1.49492143]
[1772081429561,0.002,2080.2,2079.8,1.49492143]
[1772081429768,0.15260217,2080.2,2079.6,1.49492143]
[1772081431347,0.15093794,2080.0,2079.4,1.49492143]
[1772081435392,1.20198086,2079.9,2079.8,0.001]
[1772081436265,0.15288028,2079.8,2079.5,0.001]
[1772081437670,0.15320802,2079.6,2079.5,0.001]
[1772081437871,0.15320802,2079.6,2079.3,0.001]
[1772081439183,0.15320802,2079.6,2079.0,0.001]
[1772081439585,0.15379927,2079.4,2078.8,0.001]
[1772081439787,0.1540997,2079.2,2078.8,0.001]
[1772081440186,0.1540997,2079.2,2078.7,0.001]
[1772081441760,1.35712205,2079.1,2078.7,0.001]
[1772081444196,0.15526651,2079.0,2078.7,0.001]
[1772081445077,0.15526651,2079.0,2078.5,0.001]
[1772081445279,0.15526651,2079.0,2078.1,0.001]
[1772081445470,0.15526651,2079.0,2077.9,8.30271195]
[1772081445471,0.15454664,2078.7,2077.9,0.001]
[1772081445673,0.15454664,2078.5,2077.9,0.001]
[1772081446283,0.15482515,2078.3,2077.9,0.001]
[1772081446974,1.20284834,2078.4,2077.9,1.44894967]
[1772081447786,1.35795409,2078.4,2078.1,0.001]
[1772081448162,1.20284834,2078.4,2078.1,0.001]
[1772081448360,4.96655717,2078.5,2077.9,1.44894967]
[1772081448788,4.96682859,2078.5,2077.9,1.44894967]
[1772081451593,1.20279047,2078.5,2077.9,1.44894967]
[1772081452877,1.20279047,2078.5,2078.0,1.44794967]
[1772081453272,1.20261689,2078.8,2078.0,2.65102457]
[1772081453482,1.20261689,2078.8,2078.1,1.44794967]
[1772081454072,1.35955152,2078.8,2078.1,1.44794967]
[1772081454802,4.81046757,2078.9,2078.1,1.44794967]
[1772081454803,1.20260125,2078.9,2078.1,1.44794967]
[1772081454983,1.35972441,2079.0,2078.1,1.44794967]
[1772081455181,1.20252057,2079.0,2078.1,1.44794967]
[1772081455485,2.99648759,2079.1,2078.3,1.44794967]
[1772081455804,1.794,2079.1,2078.3,1.44794967]
[1772081456098,2.99644498,2079.1,2078.3,1.44794967]
[1772081456894,3.15081546,2079.1,2078.3,1.44794967]
[1772081457097,0.15437048,2079.6,2078.5,1.47450927]
[1772081457502,1.794,2079.8,2078.7,1.47450927]
[1772081457689,1.2021363,2079.7,2078.7,1.47450927]
[1772081458205,0.002,2079.8,2078.9,1.47450927]
[1772081458407,0.002,2079.8,2079.2,1.47450927]
[1772081459575,0.002,2079.8,2079.4,1.47450927]
[1772081460784,0.1527373,2079.8,2079.1,1.47450927]
[1772081461002,0.1507373,2079.7,2078.6,1.47450927]
[1772081461205,0.1527373,2079.6,2078.6,1.47450927]
[1772081461982,0.002,2079.6,2079.2,1.47450927]
[1772081463284,1.2041588,2079.6,2079.2,1.47450927]
[1772081463720,0.002,2079.6,2079.2,1.47450927]
[1772081463921,0.002,2079.6,2079.3,1.47450927]
[1772081465884,0.14844261,2079.6,2078.9,1.47450927]
[1772081469313,1.20221207,2079.5,2078.9,1.47450927]
[1772081470007,0.14320406,2079.4,2078.5,1.47450927]
[1772081471428,1.2023277,2079.3,2078.6,1.2027326]
[1772081471603,1.20231387,2079.4,2078.7,1.47450927]
[1772081471921,1.20419346,2079.6,2078.8,1.47450927]
[1772081473215,0.002,2079.4,2078.9,1.47450927]
[1772081473731,0.002,2079.4,2079.0,1.47450927]
[1772081475531,0.002,2079.6,2079.1,1.20244336]
[1772081475736,0.002,2079.6,2079.2,1.47450927]
[1772081475898,0.002,2079.6,2078.8,1.345]
[1772081476106,0.14261057,2079.6,2078.9,1.47450927]
[1772081476804,0.14261057,2079.6,2078.6,1.47450927]
[1772081477925,1.20221207,2079.5,2078.7,1.47450927]
[1772081478309,1.341365,2079.5,2078.7,1.47450927]
[1772081479231,0.13843146,2079.4,2078.4,1.47450927]
[1772081479535,0.13843146,2079.4,2078.5,1.47450927]
[1772081480934,1.33936202,2079.3,2078.5,1.47450927]
[1772081481140,0.13703432,2079.2,2078.3,0.001]
[1772081481535,1.4362055,2079.0,2078.3,0.001]
[1772081482033,1.62306174,2079.2,2078.3,0.001]
[1772081482209,1.4362055,2079.2,2078.3,1.47550927]
[1772081482410,1.4362055,2079.2,2078.3,0.001]
[1772081483035,1.4362055,2079.0,2078.3,0.001]
[1772081485032,1.20255904,2078.9,2078.3,0.001]
[1772081485542,4.80962854,2079.2,2078.3,1.47550927]
[1772081486122,4.80962854,2079.2,2078.6,1.4013023]
[1772081486322,0.002,2079.2,2078.6,1.4013023]
[1772081488310,0.002,2079.2,2078.6,2.60402293]
[1772081488538,0.002,2079.2,2078.7,1.4013023]
[1772081488918,1.20427536,2079.4,2078.7,1.4013023]
[1772081489118,0.002,2079.4,2078.8,1.4013023]
[1772081491218,0.002,2079.4,2079.0,1.4013023]
[1772081492331,0.002,2079.4,2078.8,1.4013023]
[1772081493615,0.002,2079.4,2078.9,1.4470394]
[1772081495654,0.002,2079.4,2078.9,1.20255785]
[1772081495944,0.002,2079.4,2079.0,1.4470394]
[1772081496946,1.4751058,2079.4,2078.6,1.4470394]
[1772081497620,1.2023277,2079.3,2078.7,1.4470394]
[1772081499471,1.4731058,2079.2,2078.9,0.001]
[1772081499751,1.20244336,2079.1,2078.9,0.001]
[1772081500542,2.67554916,2079.1,2078.9,0.001]
[1772081501173,2.67554916,2079.1,2078.6,0.001]
[1772081502363,2.67554916,2079.1,2078.5,1.4480394]
[1772081502364,1.4731058,2079.0,2078.4,0.001]
[1772081503832,1.20244336,2079.1,2078.5,1.4470394]
[1772081505642,1.20244336,2079.1,2078.5,0.9670394]
[1772081505859,1.20244336,2079.1,2078.5,0.94745262]
[1772081506876,1.20244336,2079.1,2078.5,1.20277362]
[1772081507079,1.20244336,2079.1,2078.6,1.4470394]
[1772081508682,0.002,2079.2,2078.7,1.4470394]
[1772081509073,1.20233263,2079.3,2078.8,1.4470394]
[1772081510888,0.002,2079.4,2079.0,1.4470394]